[Event "FIDE Open World Rapid 2024"]
[Site "New York"]
[Date "2024.12.27"]
[Round "9.4"]
[White "Dominguez Perez, Leinier"]
[Black "Esipenko, Andrey"]
[Result "1/2-1/2"]
[ECO "C92"]
[WhiteElo "2741"]
[BlackElo "2682"]
[Annotator "TA"]
[PlyCount "51"]
[EventDate "2024.12.14"]
[EventType "swiss"]
[EventCountry "USA"]
[SourceTitle "playchess.com"]
[Source "ChessBase"]
[SourceQuality "1"]
[TimeControl "900+10"]

{[%evp 30,51,0,17,13,8,36,12,23,19,26,25,41,0,46,29,48,46,78,85,88,18,29,0]} 1. e4 {[%emt 0:00:02]} e5 {[%emt 0:00:02]} 2. Nf3 {[%emt 0:00:03]} Nc6 {[%emt 0:00:01]} 3. Bb5 {[%emt 0:00:08][%cal Bf1b5,Bb5a4,Ba4b3][%mdl 32]} a6 {[%emt 0:00:02]} 4. Ba4 {[%emt 0:00:02]} Nf6 {[%emt 0:00:03]} 5. O-O {[%emt 0:00:07]} Be7 {[%emt 0:00:02]} 6. d3 {[%emt 0:00:04]} b5 {[%emt 0:00:02]} 7. Bb3 {[%emt 0:00:03]} d6 {[%emt 0:00:02]} 8. c3 {[%emt 0:00:02]} O-O {[%emt 0:00:05]} 9. h3 {[%emt 0:00:02]} Bb7 {[%emt 0:00:02]} 10. Nbd2 {[%emt 0:00:07][%cal Bb1d2,Bd2f1,Bf1g3][%mdl 32]} Na5 {[%emt 0:00:24]} 11. Bc2 {[%emt 0:00:02]} c5 {[%emt 0:00:01]} 12. Re1 {[%emt 0:00:02]} Re8 {[%emt 0:01:11]} 13. Nf1 {[%emt 0:00:10]} h6 {[%emt 0:00:14]} 14. Ng3 {[%emt 0:00:02]} Bf8 {[%emt 0:00:17]} 15. d4 {[%emt 0:00:03]} cxd4 {[%emt 0:00:05]} 16. cxd4 {[%emt 0:00:02]} exd4 {[%emt 0:00:04]} 17. Nxd4 {[%emt 0:00:03]} Rc8 {[%emt 0:00:07]} 18. b3 {[%emt 0:00:12]} Nc6 {[%emt 0:00:30]} 19. Nxc6 {[%emt 0:02:40]} Bxc6 {[%emt 0:00:07]} 20. Bb2 {[%emt 0:00:02]} Bb7 {[%emt 0:04:16]} 21. Qd3 {[%emt 0:04:41]} g6 {[%emt 0:00:48]} (21... h5 $11) 22. Rad1 $14 {[%emt 0:01:06]} Bg7 {[%emt 0:00:14]} 23. Bb1 {[%emt 0:00:41]} ({Don't play} 23. Qxd6 Qxd6 24. Rxd6 Rxc2 $17) 23... d5 {[%emt 0:00:48]} 24. e5 {[%emt 0:01:01][%cal Og3f5] Nf5! would now be deadly. White is more active.} Ne4 {[%emt 0:00:05]} 25. Qe3 {[%emt 0:00:25]} (25. f4 $16) 25... Qg5 $11 {[%emt 0:01:22]} 26. Nxe4 {[%emt 0:02:56]} 1/2-1/2

[Event "FIDE Open World Rapid 2024"]
[Site "New York"]
[Date "2024.12.28"]
[Round "9.4"]
[White "Ansat, Aldiyar"]
[Black "Hovhannisyan, Robert"]
[Result "1-0"]
[ECO "C78"]
[WhiteElo "2479"]
[BlackElo "2626"]
[Annotator "ChessBase"]
[PlyCount "195"]
[EventDate "2024.12.14"]
[EventType "swiss"]
[EventCountry "USA"]
[SourceTitle "playchess.com"]
[Source "ChessBase"]
[SourceQuality "1"]
[TimeControl "900+10"]

1. e4 {[%emt 0:00:02]} e5 {[%emt 0:00:17]} 2. Nf3 {[%emt 0:00:03]} Nc6 {[%emt 0:00:03]} 3. Bb5 {[%emt 0:00:01]} Nf6 {[%emt 0:00:02]} 4. d3 {[%emt 0:00:32]} Bc5 {[%emt 0:00:01]} 5. Ba4 {[%emt 0:00:01]} a6 {[%emt 0:00:30]} 6. c3 {[%emt 0:00:13]} b5 {[%emt 0:00:01]} 7. Bb3 {[%emt 0:00:12]} d6 {[%emt 0:00:11]} 8. h3 {[%emt 0:00:34]} O-O {[%emt 0:00:14]} 9. O-O {[%emt 0:00:04]} Be6 {[%emt 0:00:21]} 10. a4 {[%emt 0:00:14]} Bxb3 {[%emt 0:00:37]} 11. Qxb3 {[%emt 0:00:02]} b4 {[%emt 0:00:07]} 12. Bg5 {[%emt 0:02:54]} Rb8 {[%emt 0:00:47]} 13. Qc2 {[%emt 0:00:37]} h6 {[%emt 0:00:09]} 14. Bxf6 {[%emt 0:00:19]} Qxf6 {[%emt 0:00:02]} 15. Nbd2 {[%emt 0:00:01]} Qe6 {[%emt 0:00:48]} 16. Nb3 {[%emt 0:01:56]} Ba7 {[%emt 0:02:36]} 17. d4 {[%emt 0:00:02]} Ne7 {[%emt 0:01:19]} 18. c4 {[%emt 0:02:56]} Ng6 {[%emt 0:00:30]} 19. c5 {[%emt 0:02:10]} Nf4 {[%emt 0:01:15]} 20. Kh2 {[%emt 0:00:01]} f5 {[%emt 0:01:05]} 21. Nbd2 {[%emt 0:01:15]} b3 {[%emt 0:01:58]} 22. Qc3 {[%emt 0:00:27]} Ne2 {[%emt 0:00:14]} 23. Qd3 {[%emt 0:00:23]} Nxd4 {[%emt 0:00:11]} 24. Nxd4 {[%emt 0:00:02]} exd4 {[%emt 0:00:01]} 25. cxd6 {[%emt 0:00:09]} Qxd6+ {[%emt 0:00:05]} 26. Kg1 {[%emt 0:00:06]} fxe4 {[%emt 0:01:10]} 27. Nxe4 {[%emt 0:00:03]} Qd5 {[%emt 0:00:26]} 28. Qxa6 {[%emt 0:00:38]} Qxe4 {[%emt 0:00:33]} 29. Qxa7 {[%emt 0:00:01]} Qc2 {[%emt 0:00:44]} 30. Qxd4 {[%emt 0:00:18]} Rbd8 {[%emt 0:00:28]} 31. Qe3 {[%emt 0:01:34]} Rfe8 {[%emt 0:00:10]} 32. Qg3 {[%emt 0:00:08]} Rd3 {[%emt 0:00:46]} 33. Qg6 {[%emt 0:00:02]} Red8 {[%emt 0:00:22]} 34. Rae1 {[%emt 0:01:24]} Rd2 {[%emt 0:00:52]} 35. Qe6+ {[%emt 0:00:21]} Kh7 {[%emt 0:00:02]} 36. Re3 {[%emt 0:00:12]} Rd1 {[%emt 0:01:10]} 37. Rxd1 {[%emt 0:00:02]} Rxd1+ {[%emt 0:00:10]} 38. Kh2 {[%emt 0:00:00]} Rd2 {[%emt 0:00:55]} 39. Rc3 {[%emt 0:01:04]} Qxb2 {[%emt 0:00:12]} 40. Rxb3 {[%emt 0:00:03]} Qc2 {[%emt 0:00:07]} 41. Rg3 {[%emt 0:00:40]} Rxf2 {[%emt 0:00:06]} 42. Qe7 {[%emt 0:00:04]} Qb2 {[%emt 0:00:06]} 43. Qxc7 {[%emt 0:00:10]} Re2 {[%emt 0:00:23]} 44. a5 {[%emt 0:00:09]} Re6 {[%emt 0:00:12]} 45. Rf3 {[%emt 0:00:19]} Rg6 {[%emt 0:00:03]} 46. Rg3 {[%emt 0:00:02]} Re6 {[%emt 0:00:07]} 47. Qc3 {[%emt 0:00:15]} Qb7 {[%emt 0:00:14]} 48. Qd3+ {[%emt 0:00:01]} Kh8 {[%emt 0:00:06]} 49. Qd8+ {[%emt 0:00:02]} Kh7 {[%emt 0:00:02]} 50. Rf3 {[%emt 0:00:02]} Rg6 {[%emt 0:00:11]} 51. Qd3 {[%emt 0:00:04]} Qa6 {[%emt 0:00:14]} 52. Qxa6 {[%emt 0:00:44]} Rxa6 {[%emt 0:00:01]} 53. Ra3 {[%emt 0:00:04]} Kg6 {[%emt 0:00:02]} 54. Kg3 {[%emt 0:00:01]} Kf5 {[%emt 0:00:02]} 55. Kf3 {[%emt 0:00:06]} Ke5 {[%emt 0:00:40]} 56. Kg4 {[%emt 0:00:04]} Kd5 {[%emt 0:00:13]} 57. h4 {[%emt 0:00:09]} Kc5 {[%emt 0:00:08]} 58. Ra1 {[%emt 0:00:18]} Kc6 {[%emt 0:00:06]} 59. h5 {[%emt 0:00:14]} Kc7 {[%emt 0:00:07]} 60. Kf5 {[%emt 0:00:13]} Rf6+ {[%emt 0:00:03]} 61. Ke5 {[%emt 0:00:01]} Rc6 {[%emt 0:00:19]} 62. a6 {[%emt 0:00:09]} Kb8 {[%emt 0:00:01]} 63. a7+ {[%emt 0:00:07]} Ka8 {[%emt 0:00:01]} 64. Ra5 {[%emt 0:00:23]} g6 {[%emt 0:00:18]} 65. hxg6 {[%emt 0:00:16]} Rxg6 {[%emt 0:00:02]} 66. Ra2 {[%emt 0:00:01]} Rg4 {[%emt 0:00:13]} 67. Kf6 {[%emt 0:00:20]} Rg5 {[%emt 0:00:12]} 68. Ke6 {[%emt 0:00:10]} h5 {[%emt 0:00:32]} 69. Kf6 {[%emt 0:00:06]} Rc5 {[%emt 0:00:06]} 70. g3 {[%emt 0:00:17]} Rc4 {[%emt 0:00:09]} 71. Kf5 {[%emt 0:00:11]} Rb4 {[%emt 0:00:18]} 72. Ra6 {[%emt 0:00:10]} Rb5+ {[%emt 0:00:05]} 73. Kf4 {[%emt 0:00:03]} Rb4+ {[%emt 0:00:03]} 74. Kf3 {[%emt 0:00:02]} Rb5 {[%emt 0:00:12]} 75. Kg2 {[%emt 0:00:07]} Rc5 {[%emt 0:00:15]} 76. Kh3 {[%emt 0:00:01]} Rg5 {[%emt 0:00:01]} 77. Ra4 {[%emt 0:00:07]} Rf5 {[%emt 0:00:17]} 78. Kh4 {[%emt 0:00:02]} Re5 {[%emt 0:00:01]} 79. Ra6 {[%emt 0:00:03]} Rd5 {[%emt 0:00:14]} 80. Rh6 {[%emt 0:00:02]} Kxa7 {[%emt 0:00:16]} 81. Rxh5 {[%emt 0:00:02]} Rd8 {[%emt 0:00:03]} 82. Rb5 {[%emt 0:00:09]} Ka6 {[%emt 0:00:04]} 83. Re5 {[%emt 0:00:25]} Kb6 {[%emt 0:00:12]} 84. g4 {[%emt 0:00:01]} Rh8+ {[%emt 0:00:05]} 85. Kg5 {[%emt 0:00:07]} Kc6 {[%emt 0:00:18]} 86. Kf6 {[%emt 0:00:06]} Kd6 {[%emt 0:00:06]} 87. Re1 {[%emt 0:00:11]} Rf8+ {[%emt 0:00:10]} 88. Kg7 {[%emt 0:00:03]} Rf4 {[%emt 0:00:13]} 89. g5 {[%emt 0:00:01]} Rh4 {[%emt 0:00:01]} 90. g6 {[%emt 0:00:00]} Rh2 {[%emt 0:00:02]} 91. Kf7 {[%emt 0:00:01]} Rf2+ {[%emt 0:00:02]} 92. Kg8 {[%emt 0:00:01]} Rh2 {[%emt 0:00:01]} 93. g7 {[%emt 0:00:01]} Rh4 {[%emt 0:00:08]} 94. Kf7 {[%emt 0:00:13]} Rf4+ {[%emt 0:00:02]} 95. Kg6 {[%emt 0:00:01]} Rg4+ {[%emt 0:00:01]} 96. Kf6 {[%emt 0:00:01]} Rg2 {[%emt 0:00:12]} 97. Rd1+ {[%emt 0:00:13]} Kc7 {[%emt 0:00:09]} 98. Rf1 {[%emt 0:00:01]} 1-0

[Event "FIDE Open World Rapid 2024"]
[Site "New York"]
[Date "2024.12.27"]
[Round "9.5"]
[White "Giri, Anish"]
[Black "Sevian, Samuel"]
[Result "1/2-1/2"]
[ECO "E04"]
[WhiteElo "2733"]
[BlackElo "2696"]
[Annotator "TA"]
[PlyCount "77"]
[EventDate "2024.12.14"]
[EventType "swiss"]
[EventCountry "USA"]
[SourceTitle "playchess.com"]
[Source "ChessBase"]
[SourceQuality "1"]
[TimeControl "900+10"]

{[%evp 22,77,16,17,18,25,32,45,33,5,8,6,4,4,11,11,10,10,3,9,10,0,0,0,0,0,0,0,0,-4,4,0,2,0,0,0,0,0,0,0,0,0,0,0,0,0,0,0,0,0,0,0,0,0,0,0,0,0]} 1. Nf3 {[%emt 0:00:01]} d5 {[%emt 0:00:02]} 2. g3 {[%emt 0:00:02]} c5 {[%emt 0:00:01]} 3. Bg2 {[%emt 0:00:03]} Nf6 {[%emt 0:00:05]} 4. O-O {[%emt 0:00:44]} Nc6 {[%emt 0:00:02]} 5. d4 {[%emt 0:00:01]} e6 {[%emt 0:00:01]} 6. c4 {[%emt 0:00:03]} dxc4 {[%emt 0:00:01]} 7. Qa4 {[%emt 0:00:08]} Bd7 {[%emt 0:00:13]} 8. Qxc4 {[%emt 0:00:02]} cxd4 {[%emt 0:00:02]} 9. Nxd4 {[%emt 0:00:02]} Rc8 {[%emt 0:00:03]} 10. Nc3 {[%emt 0:00:04]} Nxd4 {[%emt 0:00:02]} 11. Qxd4 {[%emt 0:00:01]} Bc5 {[%emt 0:00:01][%cal Bf8c5,Bc5e7,Be7f6][%mdl 32]} 12. Qh4 {[%emt 0:00:03]} h6 {[%emt 0:00:02]} 13. Bxb7 {[%emt 0:00:22]} Rb8 {[%emt 0:00:17]} 14. Ne4 {[%emt 0:02:15]} Be7 {[%emt 0:00:14]} 15. Nxf6+ {[%emt 0:00:13]} Bxf6 {[%emt 0:00:01]} 16. Qe4 $1 {[%emt 0:00:02] Threatens to win with Bf4.} Qb6 $132 {[%emt 0:02:14][%csl LRb2,LRb7][%mdl 2048] Black is not holding back} 17. Bd5 {[%emt 0:00:17]} O-O {[%emt 0:00:03]} 18. Bb3 {[%emt 0:00:52]} Qc6 {[%emt 0:04:10]} 19. Qxc6 {[%emt 0:03:02]} Bxc6 {[%emt 0:00:04]} 20. Bf4 {[%emt 0:03:23][%cal Bc1f4,Bf4d6,Bd6b4,Bb4c3][%mdl 32]} Rbc8 {[%emt 0:00:31]} 21. Bd6 {[%emt 0:00:50]} Rfd8 {[%emt 0:00:27]} 22. Rfd1 {[%emt 0:01:32]} Bxb2 {[%emt 0:01:11]} 23. Rab1 {[%emt 0:00:02]} Bf6 {[%emt 0:00:25] Hoping for ...Be4.} 24. Bb4 {[%emt 0:00:10]} Be4 {[%emt 0:00:41]} 25. Rxd8+ {[%emt 0:00:13]} Rxd8 {[%emt 0:00:01]} 26. Rd1 {[%emt 0:00:02]} Bc6 {[%emt 0:01:25]} 27. Rxd8+ {[%emt 0:00:06]} Bxd8 $11 {[%emt 0:00:01][%mdl 4096] Endgame KBB-KBB} 28. Bc3 {[%emt 0:00:06]} Bb6 {[%emt 0:00:02]} 29. Kf1 {[%emt 0:00:08]} h5 {[%emt 0:00:27]} 30. h4 {[%emt 0:00:04]} g6 {[%emt 0:00:13]} 31. e3 {[%emt 0:00:02]} Bb5+ {[%emt 0:00:10]} 32. Ke1 {[%emt 0:00:01]} Bc6 {[%emt 0:00:43]} 33. Kd2 {[%emt 0:00:07]} Kf8 {[%emt 0:00:02]} 34. Bb4+ {[%emt 0:00:16]} Ke8 {[%emt 0:00:04]} 35. Bc3 {[%emt 0:00:01]} Ke7 {[%emt 0:00:02]} 36. Bb4+ {[%emt 0:00:05]} Kd7 {[%emt 0:00:03]} 37. Bc3 {[%emt 0:00:01]} Ke7 {[%emt 0:00:01]} 38. Bb4+ {[%emt 0:00:00]} Kd7 {[%emt 0:00:11]} 39. Bc3 {[%emt 0:00:35]} 1/2-1/2

[Event "FIDE Open World Rapid 2024"]
[Site "New York"]
[Date "2024.12.28"]
[Round "9.5"]
[White "Rakhmanov, Aleksandr"]
[Black "Hardaway, Brewington"]
[Result "1-0"]
[ECO "A20"]
[WhiteElo "2585"]
[BlackElo "2499"]
[Annotator "ChessBase"]
[PlyCount "207"]
[EventDate "2024.12.14"]
[EventType "swiss"]
[EventCountry "USA"]
[SourceTitle "playchess.com"]
[Source "ChessBase"]
[SourceQuality "1"]
[TimeControl "900+10"]

1. c4 {[%emt 0:00:02]} e5 {[%emt 0:00:10]} 2. Nf3 {[%emt 0:00:02]} Nc6 {[%emt 0:00:02]} 3. d4 {[%emt 0:00:01]} exd4 {[%emt 0:00:02]} 4. Nxd4 {[%emt 0:00:01]} Nf6 {[%emt 0:00:01]} 5. Nxc6 {[%emt 0:00:01]} bxc6 {[%emt 0:00:01]} 6. g3 {[%emt 0:00:02]} Bb4+ {[%emt 0:00:04]} 7. Bd2 {[%emt 0:00:01]} Qe7 {[%emt 0:00:10]} 8. Bg2 {[%emt 0:00:02]} O-O {[%emt 0:00:15]} 9. O-O {[%emt 0:00:10]} d5 {[%emt 0:01:39]} 10. cxd5 {[%emt 0:00:41]} cxd5 {[%emt 0:00:26]} 11. Bxb4 {[%emt 0:01:05]} Qxb4 {[%emt 0:00:01]} 12. Qc2 {[%emt 0:00:01]} Be6 {[%emt 0:00:18]} 13. Nd2 {[%emt 0:00:34]} Rab8 {[%emt 0:00:51]} 14. b3 {[%emt 0:00:17]} c5 {[%emt 0:00:14]} 15. Nf3 {[%emt 0:00:24]} Rfc8 {[%emt 0:00:41]} 16. Ng5 {[%emt 0:01:03]} c4 {[%emt 0:00:19]} 17. Nxe6 {[%emt 0:03:00]} fxe6 {[%emt 0:00:01]} 18. Bh3 {[%emt 0:00:12]} Kf7 {[%emt 0:02:08]} 19. bxc4 {[%emt 0:01:39]} Rxc4 {[%emt 0:00:22]} 20. Qd3 {[%emt 0:00:25]} Rc3 {[%emt 0:01:10]} 21. Qa6 {[%emt 0:02:03]} Qb6 {[%emt 0:00:01]} 22. Qa4 {[%emt 0:00:11]} Rc4 {[%emt 0:01:22]} 23. Qa3 {[%emt 0:00:09]} Qc5 {[%emt 0:02:32]} 24. Qf3 {[%emt 0:02:11]} Rb2 {[%emt 0:00:26]} 25. Rab1 {[%emt 0:00:54]} Rxb1 {[%emt 0:01:52]} 26. Rxb1 {[%emt 0:00:02]} Rc1+ {[%emt 0:00:01]} 27. Rxc1 {[%emt 0:00:01]} Qxc1+ {[%emt 0:00:01]} 28. Kg2 {[%emt 0:00:10]} Qc6 {[%emt 0:00:21]} 29. Qa3 {[%emt 0:00:58]} Qb6 {[%emt 0:00:21]} 30. Qc1 {[%emt 0:00:21]} Qd6 {[%emt 0:00:28]} 31. Qc8 {[%emt 0:00:48]} h6 {[%emt 0:01:30]} 32. Kg1 {[%emt 0:00:18]} Qb6 {[%emt 0:00:17]} 33. Qc1 {[%emt 0:00:28]} Ne4 {[%emt 0:00:33]} 34. e3 {[%emt 0:00:48]} Qa5 {[%emt 0:00:20]} 35. a3 {[%emt 0:01:37]} Qc3 {[%emt 0:00:29]} 36. Qd1 {[%emt 0:00:14]} Ke7 {[%emt 0:00:49]} 37. a4 {[%emt 0:00:08]} Qd2 {[%emt 0:00:18]} 38. Qf1 {[%emt 0:00:00]} Qb4 {[%emt 0:00:19]} 39. Qa1 {[%emt 0:00:10]} Nc3 {[%emt 0:00:14]} 40. Bf1 {[%emt 0:00:23]} a5 {[%emt 0:00:20]} 41. Bd3 {[%emt 0:00:04]} e5 {[%emt 0:00:02]} 42. h4 {[%emt 0:00:05]} d4 {[%emt 0:00:08]} 43. exd4 {[%emt 0:00:02]} Qxd4 {[%emt 0:00:01]} 44. Qa3+ {[%emt 0:00:08]} Kf7 {[%emt 0:00:16]} 45. Qb3+ {[%emt 0:00:03]} Kf6 {[%emt 0:00:07]} 46. Bf1 {[%emt 0:00:21]} Ne4 {[%emt 0:00:31]} 47. Qf3+ {[%emt 0:00:05]} Ke7 {[%emt 0:00:03]} 48. Bb5 {[%emt 0:00:12]} Qd5 {[%emt 0:00:21]} 49. Qg4 {[%emt 0:00:14]} Kf6 {[%emt 0:00:07]} 50. Be8 {[%emt 0:00:14]} Nd6 {[%emt 0:00:13]} 51. Qg6+ {[%emt 0:00:17]} Ke7 {[%emt 0:00:01]} 52. Bb5 {[%emt 0:00:02]} Qf7 {[%emt 0:00:14]} 53. Qd3 {[%emt 0:00:02]} Qf5 {[%emt 0:00:08]} 54. Qd5 {[%emt 0:00:16]} Qb1+ {[%emt 0:00:17]} 55. Bf1 {[%emt 0:00:01]} Qe1 {[%emt 0:00:04]} 56. Qg8 {[%emt 0:00:13]} Ne8 {[%emt 0:00:12]} 57. Qc4 {[%emt 0:00:14]} Qb4 {[%emt 0:00:13]} 58. Qc2 {[%emt 0:00:02]} Nd6 {[%emt 0:00:10]} 59. Qg6 {[%emt 0:00:11]} Kf8 {[%emt 0:00:08]} 60. Qe6 {[%emt 0:00:22]} Qd4 {[%emt 0:00:10]} 61. Bg2 {[%emt 0:00:06]} e4 {[%emt 0:00:12]} 62. Kh2 {[%emt 0:00:17]} h5 {[%emt 0:00:11]} 63. Qd7 {[%emt 0:00:16]} Qf6 {[%emt 0:00:07]} 64. Kg1 {[%emt 0:00:10]} Qa1+ {[%emt 0:00:12]} 65. Kh2 {[%emt 0:00:01]} Qf6 {[%emt 0:00:01]} 66. Qc6 {[%emt 0:00:15]} Qe5 {[%emt 0:00:15]} 67. Qc7 {[%emt 0:00:09]} Qd5 {[%emt 0:00:15]} 68. Qd7 {[%emt 0:00:16]} Qe5 {[%emt 0:00:05]} 69. Bh3 {[%emt 0:00:04]} Qe7 {[%emt 0:00:14]} 70. Qc6 {[%emt 0:00:03]} Qf6 {[%emt 0:00:01]} 71. Qa8+ {[%emt 0:00:18]} Kf7 {[%emt 0:00:04]} 72. Qd5+ {[%emt 0:00:01]} Kf8 {[%emt 0:00:19]} 73. Kg1 {[%emt 0:00:19]} Qa1+ {[%emt 0:00:17]} 74. Kg2 {[%emt 0:00:01]} Qf6 {[%emt 0:00:01]} 75. Qxh5 {[%emt 0:00:23]} g6 {[%emt 0:00:16]} 76. Qd5 {[%emt 0:00:13]} Kg7 {[%emt 0:00:09]} 77. Bg4 {[%emt 0:00:01]} e3 {[%emt 0:00:15]} 78. fxe3 {[%emt 0:00:08]} Qe7 {[%emt 0:00:02]} 79. Qd4+ {[%emt 0:00:08]} Kh7 {[%emt 0:00:13]} 80. Kh2 {[%emt 0:00:17]} Qf8 {[%emt 0:00:14]} 81. Qf4 {[%emt 0:00:06]} Qe7 {[%emt 0:00:06]} 82. h5 {[%emt 0:00:10]} gxh5 {[%emt 0:00:05]} 83. Bxh5 {[%emt 0:00:02]} Qe6 {[%emt 0:00:09]} 84. Bg4 {[%emt 0:00:11]} Qa2+ {[%emt 0:00:04]} 85. Kh3 {[%emt 0:00:01]} Qd5 {[%emt 0:00:02]} 86. Bf3 {[%emt 0:00:06]} Qd3 {[%emt 0:00:35]} 87. Bg2 {[%emt 0:00:12]} Qd1 {[%emt 0:00:07]} 88. Qh4+ {[%emt 0:00:28]} Kg6 {[%emt 0:00:01]} 89. Qg4+ {[%emt 0:00:01]} Qxg4+ {[%emt 0:00:01]} 90. Kxg4 {[%emt 0:00:01]} Nc4 {[%emt 0:00:05]} 91. Kf4 {[%emt 0:00:03]} Kf6 {[%emt 0:00:10]} 92. g4 {[%emt 0:00:10]} Nb2 {[%emt 0:00:16]} 93. g5+ {[%emt 0:00:08]} Ke6 {[%emt 0:00:00]} 94. Bc6 {[%emt 0:00:09]} Nd3+ {[%emt 0:00:06]} 95. Ke4 {[%emt 0:00:34]} Nf2+ {[%emt 0:00:19]} 96. Kf3 {[%emt 0:00:06]} Nd3 {[%emt 0:00:01]} 97. Bb5 {[%emt 0:00:03]} Ne5+ {[%emt 0:00:21]} 98. Ke4 {[%emt 0:00:05]} Ng4 {[%emt 0:00:11]} 99. Bc4+ {[%emt 0:00:08]} Kd6 {[%emt 0:00:01]} 100. g6 {[%emt 0:00:35]} Nf6+ {[%emt 0:00:00]} 101. Kf5 {[%emt 0:00:02]} Ne8 {[%emt 0:00:02]} 102. Bb5 {[%emt 0:00:22]} Ng7+ {[%emt 0:00:02]} 103. Kf6 {[%emt 0:00:01]} Nh5+ {[%emt 0:00:01]} 104. Kf7 {[%emt 0:00:01]} 1-0

[Event "FIDE Open World Rapid 2024"]
[Site "New York"]
[Date "2024.12.28"]
[Round "9.6"]
[White "Tari, Aryan"]
[Black "Ohanyan, Emin"]
[Result "1-0"]
[ECO "B40"]
[WhiteElo "2629"]
[BlackElo "2514"]
[Annotator "ChessBase"]
[PlyCount "142"]
[EventDate "2024.12.14"]
[EventType "swiss"]
[EventCountry "USA"]
[SourceTitle "playchess.com"]
[Source "ChessBase"]
[SourceQuality "1"]
[TimeControl "900+10"]

1. e4 {[%emt 0:00:01]} c5 {[%emt 0:00:01]} 2. Nf3 {[%emt 0:00:03]} e6 {[%emt 0:00:02]} 3. d4 {[%emt 0:00:04]} cxd4 {[%emt 0:00:01]} 4. Nxd4 {[%emt 0:00:01]} Nf6 {[%emt 0:00:01]} 5. Bd3 {[%emt 0:00:09]} Nc6 {[%emt 0:00:04]} 6. Nxc6 {[%emt 0:00:02]} bxc6 {[%emt 0:00:02]} 7. Bf4 {[%emt 0:00:01]} d5 {[%emt 0:00:24]} 8. Nd2 {[%emt 0:00:03]} g6 {[%emt 0:00:42]} 9. c3 {[%emt 0:00:01]} Bg7 {[%emt 0:00:12]} 10. Qa4 {[%emt 0:00:02]} Qb6 {[%emt 0:00:19]} 11. Bd6 {[%emt 0:01:13]} Bf8 {[%emt 0:00:07]} 12. Be5 {[%emt 0:00:03]} Bg7 {[%emt 0:00:39]} 13. exd5 {[%emt 0:00:20]} exd5 {[%emt 0:00:13]} 14. Bd6 {[%emt 0:02:18]} Bf8 {[%emt 0:03:10]} 15. Qf4 {[%emt 0:00:42]} Bxd6 {[%emt 0:03:01]} 16. Qxf6 {[%emt 0:00:57]} O-O {[%emt 0:00:02]} 17. Qxd6 {[%emt 0:00:59]} Re8+ {[%emt 0:00:01]} 18. Kf1 {[%emt 0:00:57]} Qxb2 {[%emt 0:00:16]} 19. Rd1 {[%emt 0:02:34]} Bg4 {[%emt 0:06:58]} 20. f3 {[%emt 0:00:30]} Re3 {[%emt 0:01:11]} 21. Qb4 {[%emt 0:02:04]} Qxb4 {[%emt 0:00:57]} 22. cxb4 {[%emt 0:00:01]} Rxd3 {[%emt 0:00:02]} 23. fxg4 {[%emt 0:00:06]} Rb8 {[%emt 0:00:17]} 24. Ke2 {[%emt 0:01:37]} Ra3 {[%emt 0:00:01]} 25. Rb1 {[%emt 0:00:34]} Rxa2 {[%emt 0:00:08]} 26. Rhc1 {[%emt 0:00:06]} a5 {[%emt 0:00:21]} 27. bxa5 {[%emt 0:00:50]} Rxb1 {[%emt 0:00:02]} 28. Rxb1 {[%emt 0:00:01]} Rxa5 {[%emt 0:00:02]} 29. Rb8+ {[%emt 0:00:10]} Kg7 {[%emt 0:00:01]} 30. Rd8 {[%emt 0:00:02]} Ra3 {[%emt 0:00:32]} 31. Nf3 {[%emt 0:00:22]} Ra2+ {[%emt 0:00:06]} 32. Kf1 {[%emt 0:00:01]} h6 {[%emt 0:00:22]} 33. h4 {[%emt 0:00:16]} g5 {[%emt 0:00:11]} 34. Rd6 {[%emt 0:00:29]} Ra4 {[%emt 0:00:09]} 35. hxg5 {[%emt 0:00:31]} hxg5 {[%emt 0:00:01]} 36. Rxc6 {[%emt 0:00:03]} Rxg4 {[%emt 0:00:01]} 37. Rc5 {[%emt 0:00:26]} f6 {[%emt 0:00:29]} 38. Rxd5 {[%emt 0:00:02]} Ra4 {[%emt 0:00:08]} 39. Nd4 {[%emt 0:00:12]} Kg6 {[%emt 0:00:07]} 40. Rd6 {[%emt 0:00:44]} Ra1+ {[%emt 0:00:14]} 41. Kf2 {[%emt 0:00:01]} Ra2+ {[%emt 0:00:03]} 42. Kg3 {[%emt 0:00:11]} Ra3+ {[%emt 0:00:00]} 43. Kh2 {[%emt 0:00:06]} Re3 {[%emt 0:00:23]} 44. g4 {[%emt 0:00:22]} Ra3 {[%emt 0:00:15]} 45. Nf5 {[%emt 0:00:18]} Ra2+ {[%emt 0:00:06]} 46. Kg3 {[%emt 0:00:01]} Ra3+ {[%emt 0:00:02]} 47. Kf2 {[%emt 0:00:01]} Ra2+ {[%emt 0:00:16]} 48. Kf3 {[%emt 0:00:11]} Ra3+ {[%emt 0:00:04]} 49. Ke4 {[%emt 0:00:29]} Ra4+ {[%emt 0:00:03]} 50. Rd4 {[%emt 0:00:01]} Ra5 {[%emt 0:00:24]} 51. Ne3 {[%emt 0:00:15]} Ra7 {[%emt 0:00:15]} 52. Rd6 {[%emt 0:00:12]} Ra4+ {[%emt 0:00:01]} 53. Kf3 {[%emt 0:00:01]} Ra3 {[%emt 0:00:00]} 54. Rd4 {[%emt 0:00:20]} Rb3 {[%emt 0:00:14]} 55. Ke4 {[%emt 0:00:03]} Ra3 {[%emt 0:00:13]} 56. Rc4 {[%emt 0:00:22]} Rb3 {[%emt 0:00:10]} 57. Nf5 {[%emt 0:00:03]} Rb7 {[%emt 0:00:21]} 58. Kd5 {[%emt 0:00:09]} Rb5+ {[%emt 0:00:00]} 59. Kc6 {[%emt 0:00:52]} Ra5 {[%emt 0:00:21]} 60. Rb4 {[%emt 0:00:02]} Ra6+ {[%emt 0:00:05]} 61. Kb7 {[%emt 0:00:09]} Ra1 {[%emt 0:00:14]} 62. Rd4 {[%emt 0:00:09]} Rb1+ {[%emt 0:00:11]} 63. Kc6 {[%emt 0:00:02]} Rc1+ {[%emt 0:00:06]} 64. Kd7 {[%emt 0:00:03]} Re1 {[%emt 0:00:10]} 65. Kd8 {[%emt 0:00:22]} Rc1 {[%emt 0:00:14]} 66. Re4 {[%emt 0:00:13]} Rd1+ {[%emt 0:00:10]} 67. Ke7 {[%emt 0:00:02]} Ra1 {[%emt 0:00:10]} 68. Kf8 {[%emt 0:00:44]} Ra8+ {[%emt 0:00:15]} 69. Re8 {[%emt 0:00:06]} Ra4 {[%emt 0:00:00]} 70. Ne7+ {[%emt 0:00:06]} Kh7 {[%emt 0:00:11]} 71. Kf7 {[%emt 0:00:05]} Ra7 {[%emt 0:00:30]} 1-0